{"text_format":"3","workbook":"xlsx","n_sheets":2,"sheets":["SÅ HÄR ANVÄNDER DU ARBETSBOKEN","BETYGSBOK"],"not_rendered":{"defined_names":7},"read":"whole","date_system":"1900"}

{"sheet":"SÅ HÄR ANVÄNDER DU ARBETSBOKEN","index":0,"n_rows":10,"n_cols":2,"rows_kept":10}
[null,"INSTRUKTIONER"]
[null,"Använd kalkylbladet BETYGSBOK för att beräkna betyg för uppgifter som är värda ett visst antal poäng. "]
[null,"Instruktioner: Se till att du sparar säkerhetskopior av betygen."]
[null,"1. Fyll i skolans namn, klassinformation, elevnamn och elev-ID (valfritt).   "]
[null,"2. Justera tabellen Betyg och snittbetyg så att den passar det poängsystemet du använder."]
[null,"3. Fyll i namn för uppgiften, testet eller provet (t.ex. ”Test 1”) med början i cell H8, tillsammans med det poängantal som varje uppgift är värd. "]
[null,"4. Fyll i resultatet för varje elev för varje uppgift eller prov. Kolumnerna ”Medel”, ”Resultat”, ”Bokstavsbetyg” och ”Snittbetyg” beräknas automatiskt, men du kan åsidosätta dem om du vill. Om du vill ge extra poäng kan du helt enkelt ge fler poäng för en uppgift än det totala antalet möjliga poäng som har angetts för uppgiften."]
[null,"Använd kommandot Utskriftsområde på menyn Sidlayout om du vill ändra det du skriver ut."]
[null,"Resultat för betyg baseras på en vanlig procentskala enligt det totala antalet poäng som har angetts i raderna 8 och 9. Justera varje uppgift eller prov till det önskade antalet poäng, och justera sedan procentandelen till det rätta betyget. Skriv över cellerna för resultat om du vill göra ändringar manuellt."]
[null,"Ange varje uppgift, test eller prov och de poäng de är värda i cellerna H8 till X9."]

{"sheet":"BETYGSBOK","index":1,"n_rows":24,"n_cols":24,"rows_kept":24,"merged":[[1,1,2,6],[3,1,3,6],[4,1,6,6],[7,4,7,6],[8,4,8,6],[10,4,10,6],[11,4,11,6],[20,1,20,2],[20,3,20,4],[21,1,21,2],[21,3,21,4],[22,1,22,2],[22,3,22,4],[23,1,23,2],[23,3,23,4]]}
[null,"Skolans namn"]
[null,"Lärarens namn"]
[{"$nulls":7},"Resultat",{"$f":"I4*TotalaPoäng","v":118},120,126,134,140,{"v":145.6666666666666,"d":"146"},154,160,166,174,180,186,194]
[null,"Klass/Projekt",{"$nulls":5},"%",{"v":0.59,"d":"59%"},{"v":0.6,"d":"60%"},{"v":0.63,"d":"63%"},{"v":0.67,"d":"67%"},{"v":0.7,"d":"70%"},{"v":0.728333333333333,"d":"73%"},{"v":0.77,"d":"77%"},{"v":0.8,"d":"80%"},{"v":0.83,"d":"83%"},{"v":0.87,"d":"87%"},{"v":0.9,"d":"90%"},{"v":0.93,"d":"93%"},{"v":0.97,"d":"97%"}]
[null,"År/termin/kvartal",{"$nulls":5},"Bokstavsbetyg","F","D-","D","D+","C-","C","C+","B-","B","B+","A-","A","A+"]
[{"$nulls":7},"Snittbetyg",0,0.67,1,1.33,1.67,2,2.33,2.67,3,3.33,3.67,4,4]
[]
[{"$nulls":4},"Namn på uppgift eller prov",null,null,"HW1","HW2","Q1"]
[{"$nulls":4},"Totalt antal tillgängliga poäng",null,null,50,50,100]
[]
[{"$nulls":4},"Totalt antal uppgifter och prov:",null,null,{"$f":"COUNTA(H8:AH8)","v":3}]
[{"$nulls":4},"Totalt antal möjliga poäng:",null,null,{"$f":"SUM(H9:AH9)","v":200}]
[]
[null,"Elevens namn","Elev-ID","Medel","Resultat","Bokstavsbetyg","Snittbetyg","Kolumn6","Kolumn7","Kolumn8","Kolumn9","Kolumn10","Kolumn11","Kolumn12","Kolumn13","Kolumn14","Kolumn15","Kolumn16","Kolumn17","Kolumn18","Kolumn19","Kolumn20","Kolumn21","Kolumn22"]
[null,"Elev 1",null,{"$f":"IFERROR(IF(COUNT(Betyg[[#This Row],[Kolumn6]:[Kolumn22]])=0,\"\",SUM(Betyg[[#This Row],[Kolumn6]:[Kolumn22]])/TotalaPoäng),\"\")","v":{"v":0.91,"d":"91.0%"}},{"$f":"IF(COUNT(Betyg[[#This Row],[Kolumn6]:[Kolumn22]])=0,\"\",SUM(Betyg[[#This Row],[Kolumn6]:[Kolumn22]]))","v":182},{"$f":"IFERROR(IF(Betyg[[#This Row],[Medel]]<>\"\",HLOOKUP(Betyg[[#This Row],[Medel]]*TotalaPoäng,Betygstabell,3),\"\"),0)","v":"A-"},{"$f":"IFERROR(IF(Betyg[[#This Row],[Medel]]<>\"\",HLOOKUP(Betyg[[#This Row],[Medel]]*TotalaPoäng,Betygstabell,4),\"\"),0)","v":3.67},45,45,92]
[null,"Elev 2",null,{"$f":"IFERROR(IF(COUNT(Betyg[[#This Row],[Kolumn6]:[Kolumn22]])=0,\"\",SUM(Betyg[[#This Row],[Kolumn6]:[Kolumn22]])/TotalaPoäng),\"\")","v":{"v":1,"d":"100.0%"}},{"$f":"IF(COUNT(Betyg[[#This Row],[Kolumn6]:[Kolumn22]])=0,\"\",SUM(Betyg[[#This Row],[Kolumn6]:[Kolumn22]]))","v":200},{"$f":"IFERROR(IF(Betyg[[#This Row],[Medel]]<>\"\",HLOOKUP(Betyg[[#This Row],[Medel]]*TotalaPoäng,Betygstabell,3),\"\"),0)","v":"A+"},{"$f":"IFERROR(IF(Betyg[[#This Row],[Medel]]<>\"\",HLOOKUP(Betyg[[#This Row],[Medel]]*TotalaPoäng,Betygstabell,4),\"\"),0)","v":{"v":4,"d":"4.00"}},50,50,100]
[{"$nulls":3},{"$f":"IFERROR(IF(COUNT(Betyg[[#This Row],[Kolumn6]:[Kolumn22]])=0,\"\",SUM(Betyg[[#This Row],[Kolumn6]:[Kolumn22]])/TotalaPoäng),\"\")","v":""},{"$f":"IF(COUNT(Betyg[[#This Row],[Kolumn6]:[Kolumn22]])=0,\"\",SUM(Betyg[[#This Row],[Kolumn6]:[Kolumn22]]))","v":""},{"$f":"IFERROR(IF(Betyg[[#This Row],[Medel]]<>\"\",HLOOKUP(Betyg[[#This Row],[Medel]]*TotalaPoäng,Betygstabell,3),\"\"),0)","v":""},{"$f":"IFERROR(IF(Betyg[[#This Row],[Medel]]<>\"\",HLOOKUP(Betyg[[#This Row],[Medel]]*TotalaPoäng,Betygstabell,4),\"\"),0)","v":""}]
[{"$nulls":3},{"$f":"IFERROR(IF(COUNT(Betyg[[#This Row],[Kolumn6]:[Kolumn22]])=0,\"\",SUM(Betyg[[#This Row],[Kolumn6]:[Kolumn22]])/TotalaPoäng),\"\")","v":""},{"$f":"IF(COUNT(Betyg[[#This Row],[Kolumn6]:[Kolumn22]])=0,\"\",SUM(Betyg[[#This Row],[Kolumn6]:[Kolumn22]]))","v":""},{"$f":"IFERROR(IF(Betyg[[#This Row],[Medel]]<>\"\",HLOOKUP(Betyg[[#This Row],[Medel]]*TotalaPoäng,Betygstabell,3),\"\"),0)","v":""},{"$f":"IFERROR(IF(Betyg[[#This Row],[Medel]]<>\"\",HLOOKUP(Betyg[[#This Row],[Medel]]*TotalaPoäng,Betygstabell,4),\"\"),0)","v":""}]
[{"$nulls":3},{"$f":"IFERROR(IF(COUNT(Betyg[[#This Row],[Kolumn6]:[Kolumn22]])=0,\"\",SUM(Betyg[[#This Row],[Kolumn6]:[Kolumn22]])/TotalaPoäng),\"\")","v":""},{"$f":"IF(COUNT(Betyg[[#This Row],[Kolumn6]:[Kolumn22]])=0,\"\",SUM(Betyg[[#This Row],[Kolumn6]:[Kolumn22]]))","v":""},{"$f":"IFERROR(IF(Betyg[[#This Row],[Medel]]<>\"\",HLOOKUP(Betyg[[#This Row],[Medel]]*TotalaPoäng,Betygstabell,3),\"\"),0)","v":""},{"$f":"IFERROR(IF(Betyg[[#This Row],[Medel]]<>\"\",HLOOKUP(Betyg[[#This Row],[Medel]]*TotalaPoäng,Betygstabell,4),\"\"),0)","v":""}]
[]
[null,"Sammanfattning av klassen",null,"Medel",null,"Bokstavsbetyg","Snittbetyg","","","","","","","","","","",""]
[null," Medel",null,{"$f":"IFERROR(AVERAGE(Betyg[[#All],[Medel]]),0)","v":{"v":0.9550000000000001,"d":"95.5%"}},null,{"$f":"IFERROR(HLOOKUP(D22*TotalaPoäng,Betygstabell,3),\"\")","v":"A"},{"$f":"IFERROR(AVERAGE(Betyg[[#All],[Snittbetyg]]),0)","v":{"v":3.835,"d":"3.84"}},"","","","","","","","","","","","","","","","",""]
[null," Högsta poäng",null,{"$f":"IFERROR(MAX(Betyg[[#All],[Medel]]),0)","v":{"v":1,"d":"100.0%"}},null,{"$f":"IFERROR(HLOOKUP(D23*TotalaPoäng,Betygstabell,3),\"\")","v":"A+"},{"$f":"IFERROR(MAX(Betyg[[#All],[Snittbetyg]]),0)","v":{"v":4,"d":"4.00"}},"","","","","","","","","","","","","","","","",""]
[null," Lägsta poäng",null,{"$f":"IFERROR(MIN(Betyg[[#All],[Medel]]),0)","v":{"v":0.91,"d":"91.0%"}},null,{"$f":"IFERROR(HLOOKUP(D24*TotalaPoäng,Betygstabell,3),\"\")","v":"A-"},{"$f":"IFERROR(MIN(Betyg[[#All],[Snittbetyg]]),0)","v":3.67},"","","","","","","","","","","","","","","","",""]